[Event "*** SCC Grand Prix: Titled Tuesday Blitz"]
[Site "Chess.com"]
[Date "2020.08.25"]
[Round "3"]
[White "Lion-Al-Messi"]
[Black "ChronicUnhappiness"]
[Result "1-0"]
[WhiteElo "2571"]
[BlackElo "2375"]
[TimeControl "180+1"]
[EndTime "10:30:21 PDT"]
[Termination "Lion-Al-Messi won by checkmate"]

1. e4 {[%clk 0:03:00.6]} 1... c5 {[%clk 0:02:59.4]} 2. Nf3 {[%clk 0:03:01.1]}
2... Nc6 {[%clk 0:02:59.2]} 3. d4 {[%clk 0:03:01.7]} 3... cxd4 {[%clk
0:02:59.2]} 4. Nxd4 {[%clk 0:03:02.6]} 4... Nf6 {[%clk 0:02:59.6]} 5. Nc3 {[%clk
0:03:03.2]} 5... e5 {[%clk 0:02:59.9]} 6. Ndb5 {[%clk 0:03:03.1]} 6... d6 {[%clk
0:03:00.1]} 7. Nd5 {[%clk 0:03:03.5]} 7... Nxd5 {[%clk 0:02:59.5]} 8. exd5
{[%clk 0:03:04.4]} 8... Nb8 {[%clk 0:02:59.7]} 9. a4 {[%clk 0:03:02.5]} 9... Be7
{[%clk 0:02:59.5]} 10. Be3 {[%clk 0:03:02.6]} 10... a6 {[%clk 0:02:54.7]} 11.
Na3 {[%clk 0:03:02.6]} 11... O-O {[%clk 0:02:54.2]} 12. Be2 {[%clk 0:03:02.2]}
12... Bg5 {[%clk 0:02:51.2]} 13. Nc4 {[%clk 0:02:59.8]} 13... Bxe3 {[%clk
0:02:49]} 14. fxe3 {[%clk 0:02:57.4]} 14... Nd7 {[%clk 0:02:27.5]} 15. O-O
{[%clk 0:02:55.2]} 15... a5 {[%clk 0:02:26.6]} 16. Bg4 {[%clk 0:02:52]} 16...
Nc5 {[%clk 0:02:24.2]} 17. Bxc8 {[%clk 0:02:51.3]} 17... Rxc8 {[%clk 0:02:23]}
18. b3 {[%clk 0:02:48.1]} 18... f5 {[%clk 0:02:19.6]} 19. Qh5 {[%clk 0:02:46.2]}
19... g6 {[%clk 0:02:15.4]} 20. Qh6 {[%clk 0:02:46.2]} 20... Ne4 {[%clk
0:02:07.7]} 21. Rad1 {[%clk 0:02:46.1]} 21... Rc5 {[%clk 0:01:48.4]} 22. Rd3
{[%clk 0:02:16.3]} 22... Nf6 {[%clk 0:01:46.1]} 23. Rfd1 {[%clk 0:02:15.9]}
23... Qc7 {[%clk 0:01:37.8]} 24. Qh4 {[%clk 0:02:04.1]} 24... Ne4 {[%clk
0:01:35.7]} 25. Qe1 {[%clk 0:01:55.3]} 25... b6 {[%clk 0:01:32.1]} 26. h3 {[%clk
0:01:46.3]} 26... Rxc4 {[%clk 0:01:27]} 27. bxc4 {[%clk 0:01:45.7]} 27... Qxc4
{[%clk 0:01:27.9]} 28. Rb3 {[%clk 0:01:41.5]} 28... Rb8 {[%clk 0:01:19.6]} 29.
Rdb1 {[%clk 0:01:41.1]} 29... Qxd5 {[%clk 0:01:05.8]} 30. Rxb6 {[%clk
0:01:38.2]} 30... Rxb6 {[%clk 0:01:06.7]} 31. Rxb6 {[%clk 0:01:38.4]} 31... f4
{[%clk 0:00:57.1]} 32. exf4 {[%clk 0:01:31.8]} 32... Qd4+ {[%clk 0:00:49.9]} 33.
Kh2 {[%clk 0:01:32]} 33... Qxb6 {[%clk 0:00:46]} 34. Qxe4 {[%clk 0:01:32]} 34...
exf4 {[%clk 0:00:42.2]} 35. Qxf4 {[%clk 0:01:30.9]} 35... Qc5 {[%clk 0:00:41.4]}
36. Qd2 {[%clk 0:01:03.1]} 36... Kg7 {[%clk 0:00:38.7]} 37. Qd3 {[%clk
0:00:57.7]} 37... h5 {[%clk 0:00:33]} 38. h4 {[%clk 0:00:51.7]} 38... d5 {[%clk
0:00:31.9]} 39. Qb5 {[%clk 0:00:39]} 39... Qxc2 {[%clk 0:00:18.2]} 40. Qxa5
{[%clk 0:00:35.9]} 40... Qe4 {[%clk 0:00:14.9]} 41. Qc7+ {[%clk 0:00:33.9]}
41... Kh6 {[%clk 0:00:14.8]} 42. Qc1+ {[%clk 0:00:33.8]} 42... Kh7 {[%clk
0:00:12.5]} 43. Qc7+ {[%clk 0:00:23.5]} 43... Kh6 {[%clk 0:00:12.3]} 44. Qd8
{[%clk 0:00:23.1]} 44... d4 {[%clk 0:00:07.7]} 45. Qh8# {[%clk 0:00:22.5]} 1-0

[Event "*** SCC Grand Prix: Titled Tuesday Blitz"]
[Site "Chess.com"]
[Date "2020.08.25"]
[Round "3"]
[White "PavelShkapenko"]
[Black "KuzubovYuriy"]
[Result "0-1"]
[WhiteElo "2621"]
[BlackElo "2865"]
[TimeControl "180+1"]
[EndTime "10:30:22 PDT"]
[Termination "KuzubovYuriy won by resignation"]

1. e4 {[%clk 0:03:00.9]} 1... c5 {[%clk 0:02:59.7]} 2. c3 {[%clk 0:03:00.9]}
2... Nf6 {[%clk 0:02:58.7]} 3. e5 {[%clk 0:03:00.7]} 3... Nd5 {[%clk 0:02:59.3]}
4. d4 {[%clk 0:03:01.2]} 4... cxd4 {[%clk 0:03:00.2]} 5. cxd4 {[%clk 0:03:01.8]}
5... d6 {[%clk 0:02:59.9]} 6. Nf3 {[%clk 0:03:00.4]} 6... Nc6 {[%clk 0:02:57.7]}
7. Bc4 {[%clk 0:03:00]} 7... Nb6 {[%clk 0:02:54.3]} 8. Bb3 {[%clk 0:02:59.6]}
8... d5 {[%clk 0:02:54]} 9. Nh4 {[%clk 0:02:59]} 9... h6 {[%clk 0:02:45.4]} 10.
f4 {[%clk 0:02:13.7]} 10... g5 {[%clk 0:02:30.2]} 11. fxg5 {[%clk 0:01:52.1]}
11... hxg5 {[%clk 0:02:29.9]} 12. Bxg5 {[%clk 0:01:52.8]} 12... Rg8 {[%clk
0:02:30.1]} 13. Be3 {[%clk 0:01:52.4]} 13... Bg4 {[%clk 0:02:28.8]} 14. Nf3
{[%clk 0:01:47.3]} 14... e6 {[%clk 0:02:17.3]} 15. O-O {[%clk 0:01:46.6]} 15...
Nc4 {[%clk 0:02:15.2]} 16. Bxc4 {[%clk 0:01:45.5]} 16... dxc4 {[%clk 0:02:14.5]}
17. Nbd2 {[%clk 0:01:46.1]} 17... Qd5 {[%clk 0:02:09.9]} 18. Qc2 {[%clk
0:01:22.2]} 18... b5 {[%clk 0:01:43.1]} 19. Qe4 {[%clk 0:01:07.9]} 19... O-O-O
{[%clk 0:01:36.2]} 20. a4 {[%clk 0:01:01.9]} 20... Qxe4 {[%clk 0:01:12.8]} 21.
Nxe4 {[%clk 0:01:00.9]} 21... Bxf3 {[%clk 0:01:11.7]} 22. Rxf3 {[%clk
0:00:48.9]} 22... Nxd4 {[%clk 0:01:11.3]} 23. Bxd4 {[%clk 0:00:22.2]} 23... Rxd4
{[%clk 0:01:10.7]} 24. Nf6 {[%clk 0:00:22.8]} 24... Rg5 {[%clk 0:01:07.2]} 25.
axb5 {[%clk 0:00:22.5]} 25... Rd2 {[%clk 0:00:57.7]} 26. Rg3 {[%clk 0:00:20.5]}
26... Rxg3 {[%clk 0:00:50.1]} 27. hxg3 {[%clk 0:00:20.2]} 27... Rxb2 {[%clk
0:00:49.9]} 28. Rc1 {[%clk 0:00:19.8]} 28... Rb4 {[%clk 0:00:44.6]} 29. Ne4
{[%clk 0:00:18]} 29... Kb7 {[%clk 0:00:41]} 30. Nd2 {[%clk 0:00:16.3]} 30... Bh6
{[%clk 0:00:36.8]} 31. Rc2 {[%clk 0:00:15.3]} 31... Bxd2 {[%clk 0:00:27.9]} 32.
Rxd2 {[%clk 0:00:15.5]} 32... Kb6 {[%clk 0:00:27.9]} 33. Kf2 {[%clk 0:00:12.3]}
33... c3 {[%clk 0:00:26.9]} 34. Rd3 {[%clk 0:00:10.1]} 34... Rc4 {[%clk
0:00:26.3]} 35. Rd1 {[%clk 0:00:08.4]} 35... c2 {[%clk 0:00:26.5]} 36. Rc1
{[%clk 0:00:08.8]} 36... Kxb5 {[%clk 0:00:26.9]} 37. Ke3 {[%clk 0:00:09.4]}
37... a5 {[%clk 0:00:26.8]} 38. Kd3 {[%clk 0:00:10]} 38... Kc5 {[%clk 0:00:27]}
39. g4 {[%clk 0:00:08.6]} 39... Kd5 {[%clk 0:00:25.4]} 40. g5 {[%clk 0:00:08.4]}
40... a4 {[%clk 0:00:25.5]} 41. g3 {[%clk 0:00:07.7]} 41... a3 {[%clk
0:00:25.5]} 42. Rxc2 {[%clk 0:00:08.2]} 42... Rxc2 {[%clk 0:00:25.5]} 43. Kxc2
{[%clk 0:00:08.9]} 43... Kxe5 {[%clk 0:00:25.9]} 44. Kb3 {[%clk 0:00:09.5]}
44... Kf5 {[%clk 0:00:26.2]} 45. Kxa3 {[%clk 0:00:09.5]} 45... Kxg5 {[%clk
0:00:26.5]} 0-1

[Event "*** SCC Grand Prix: Titled Tuesday Blitz"]
[Site "Chess.com"]
[Date "2020.08.25"]
[Round "3"]
[White "frederiksvane"]
[Black "GMAkobianSTL"]
[Result "1-0"]
[WhiteElo "2632"]
[BlackElo "2846"]
[TimeControl "180+1"]
[EndTime "10:30:23 PDT"]
[Termination "frederiksvane won on time"]

1. e4 {[%clk 0:03:00.9]} 1... d6 {[%clk 0:02:59.9]} 2. d4 {[%clk 0:03:01]} 2...
Nf6 {[%clk 0:02:59.6]} 3. Bd3 {[%clk 0:03:01.1]} 3... c6 {[%clk 0:02:53.6]} 4.
Nf3 {[%clk 0:03:00.9]} 4... Bg4 {[%clk 0:02:53.2]} 5. Nbd2 {[%clk 0:03:00.1]}
5... e6 {[%clk 0:02:53]} 6. h3 {[%clk 0:03:00.3]} 6... Bh5 {[%clk 0:02:52.5]} 7.
c3 {[%clk 0:02:56.4]} 7... d5 {[%clk 0:02:52.3]} 8. e5 {[%clk 0:02:55.3]} 8...
Nfd7 {[%clk 0:02:51.9]} 9. O-O {[%clk 0:02:48.9]} 9... c5 {[%clk 0:02:51.7]} 10.
a3 {[%clk 0:02:44.4]} 10... Nc6 {[%clk 0:02:51]} 11. b4 {[%clk 0:02:44.4]} 11...
cxd4 {[%clk 0:02:50.7]} 12. cxd4 {[%clk 0:02:44.7]} 12... Nxd4 {[%clk
0:02:48.7]} 13. g4 {[%clk 0:02:31.1]} 13... Nxf3+ {[%clk 0:02:44.3]} 14. Nxf3
{[%clk 0:02:32]} 14... Bg6 {[%clk 0:02:43.9]} 15. Be3 {[%clk 0:02:29.9]} 15...
Be7 {[%clk 0:02:39.2]} 16. Kg2 {[%clk 0:02:23.3]} 16... Rc8 {[%clk 0:02:33.9]}
17. Bxg6 {[%clk 0:02:17.2]} 17... hxg6 {[%clk 0:02:30]} 18. Qd3 {[%clk
0:02:17.2]} 18... Rc4 {[%clk 0:02:14.1]} 19. Nd2 {[%clk 0:02:11.6]} 19... Nxe5
{[%clk 0:02:09.3]} 20. Qe2 {[%clk 0:02:09.7]} 20... Rc2 {[%clk 0:01:59.7]} 21.
Rac1 {[%clk 0:02:09]} 21... Rxc1 {[%clk 0:01:57.8]} 22. Rxc1 {[%clk 0:02:09.9]}
22... Nd7 {[%clk 0:01:51.5]} 23. Bxa7 {[%clk 0:01:49.7]} 23... O-O {[%clk
0:01:42.1]} 24. Qb5 {[%clk 0:01:41.3]} 24... Bg5 {[%clk 0:01:35.2]} 25. Be3
{[%clk 0:01:41]} 25... Bxe3 {[%clk 0:01:34]} 26. fxe3 {[%clk 0:01:41.9]} 26...
b6 {[%clk 0:01:28.6]} 27. Nf3 {[%clk 0:01:41.3]} 27... Nf6 {[%clk 0:01:24.2]}
28. Rc6 {[%clk 0:01:37.6]} 28... Qa8 {[%clk 0:01:20.4]} 29. a4 {[%clk
0:01:35.9]} 29... Rc8 {[%clk 0:01:13.6]} 30. Nd4 {[%clk 0:00:59.7]} 30... Rb8
{[%clk 0:00:36.3]} 31. Rc7 {[%clk 0:00:46.3]} 31... e5 {[%clk 0:00:28.8]} 32.
Nc6 {[%clk 0:00:42.2]} 32... Re8 {[%clk 0:00:28.4]} 33. a5 {[%clk 0:00:42.2]}
33... bxa5 {[%clk 0:00:28.2]} 34. bxa5 {[%clk 0:00:43.1]} 34... d4 {[%clk
0:00:28.5]} 35. a6 {[%clk 0:00:36.7]} 35... dxe3 {[%clk 0:00:26.3]} 36. a7
{[%clk 0:00:36.4]} 36... Kh7 {[%clk 0:00:20.1]} 37. Rb7 {[%clk 0:00:33]} 37...
e2 {[%clk 0:00:19.3]} 38. Kf2 {[%clk 0:00:32.4]} 38... Nd5 {[%clk 0:00:19.4]}
39. Rb8 {[%clk 0:00:27.3]} 39... Rxb8 {[%clk 0:00:18.1]} 40. axb8=Q {[%clk
0:00:26.5]} 40... Qa1 {[%clk 0:00:16.8]} 41. Qxe2 {[%clk 0:00:24.9]} 41... Nf4
{[%clk 0:00:16.8]} 42. Qbxe5 {[%clk 0:00:21.4]} 42... Qa4 {[%clk 0:00:05.4]} 43.
Q5e4 {[%clk 0:00:21.5]} 1-0

[Event "*** SCC Grand Prix: Titled Tuesday Blitz"]
[Site "Chess.com"]
[Date "2020.08.25"]
[Round "3"]
[White "GMKrikor"]
[Black "hellokostya"]
[Result "1-0"]
[WhiteElo "2721"]
[BlackElo "2468"]
[TimeControl "180+1"]
[EndTime "10:30:23 PDT"]
[Termination "GMKrikor won by resignation"]

1. e4 {[%clk 0:03:00.9]} 1... e5 {[%clk 0:02:57]} 2. Bc4 {[%clk 0:03:00.1]} 2...
Nf6 {[%clk 0:02:53.8]} 3. d3 {[%clk 0:02:59.7]} 3... Nc6 {[%clk 0:02:44.5]} 4.
Nc3 {[%clk 0:02:59.4]} 4... Bb4 {[%clk 0:02:43.5]} 5. Ne2 {[%clk 0:02:43.7]}
5... d5 {[%clk 0:02:14.3]} 6. exd5 {[%clk 0:02:44.6]} 6... Nxd5 {[%clk
0:02:14.6]} 7. O-O {[%clk 0:02:44.6]} 7... Nxc3 {[%clk 0:02:08.1]} 8. bxc3
{[%clk 0:02:43.9]} 8... Be7 {[%clk 0:02:02.1]} 9. Ng3 {[%clk 0:02:40.9]} 9...
O-O {[%clk 0:01:59.4]} 10. Bb3 {[%clk 0:02:37.6]} 10... Bg5 {[%clk 0:01:46.6]}
11. Qh5 {[%clk 0:02:26.5]} 11... Bxc1 {[%clk 0:01:42.3]} 12. Raxc1 {[%clk
0:02:27.4]} 12... Qf6 {[%clk 0:01:31.6]} 13. Rce1 {[%clk 0:02:17.4]} 13... Qg6
{[%clk 0:01:22]} 14. Qh4 {[%clk 0:01:37.4]} 14... a5 {[%clk 0:01:03.2]} 15. f4
{[%clk 0:01:32.8]} 15... exf4 {[%clk 0:00:51.8]} 16. Qxf4 {[%clk 0:01:30.4]}
16... a4 {[%clk 0:00:51.1]} 17. Qxf7+ {[%clk 0:01:07.7]} 17... Qxf7 {[%clk
0:00:47.3]} 18. Bxf7+ {[%clk 0:01:05.4]} 18... Kh8 {[%clk 0:00:46.5]} 19. Bd5
{[%clk 0:00:58.4]} 19... Bd7 {[%clk 0:00:39.3]} 20. Ne4 {[%clk 0:00:47.8]} 20...
b6 {[%clk 0:00:33.1]} 21. Ng5 {[%clk 0:00:46]} 21... h6 {[%clk 0:00:31.3]} 22.
Ne6 {[%clk 0:00:40.3]} 22... Bxe6 {[%clk 0:00:27.3]} 23. Rxe6 {[%clk 0:00:29.1]}
23... Rxf1+ {[%clk 0:00:27.1]} 24. Kxf1 {[%clk 0:00:30]} 24... Rf8+ {[%clk
0:00:27]} 25. Ke1 {[%clk 0:00:30.3]} 25... Na7 {[%clk 0:00:19.9]} 26. c4 {[%clk
0:00:26.7]} 26... Nc8 {[%clk 0:00:19.9]} 27. Rc6 {[%clk 0:00:24.2]} 27... Re8+
{[%clk 0:00:18.7]} 28. Kd2 {[%clk 0:00:21.6]} 28... Re7 {[%clk 0:00:18.7]} 29.
Re6 {[%clk 0:00:18.3]} 29... Rxe6 {[%clk 0:00:12.7]} 30. Bxe6 {[%clk 0:00:19.2]}
30... Nd6 {[%clk 0:00:11.9]} 31. a3 {[%clk 0:00:19.2]} 31... g5 {[%clk
0:00:10.9]} 32. Bd7 {[%clk 0:00:19.5]} 32... Kg7 {[%clk 0:00:09.9]} 33. Bxa4
{[%clk 0:00:19.6]} 33... Kf6 {[%clk 0:00:10.8]} 34. Bd7 {[%clk 0:00:16.7]} 34...
Ke5 {[%clk 0:00:10.7]} 35. Ke3 {[%clk 0:00:17.2]} 35... c5 {[%clk 0:00:09.9]}
36. c3 {[%clk 0:00:17.5]} 36... Kf6 {[%clk 0:00:09.3]} 37. Bc6 {[%clk
0:00:17.1]} 37... Kf5 {[%clk 0:00:08.5]} 38. Bd5 {[%clk 0:00:16.9]} 38... Kf6
{[%clk 0:00:08]} 39. d4 {[%clk 0:00:16.4]} 39... Nf5+ {[%clk 0:00:07.5]} 40. Kd3
{[%clk 0:00:16.7]} 40... Nh4 {[%clk 0:00:08.1]} 41. Be4 {[%clk 0:00:15.7]} 41...
Ke7 {[%clk 0:00:05.3]} 42. g3 {[%clk 0:00:15.7]} 1-0

[Event "*** SCC Grand Prix: Titled Tuesday Blitz"]
[Site "Chess.com"]
[Date "2020.08.25"]
[Round "3"]
[White "Spalir"]
[Black "chessfrendz"]
[Result "0-1"]
[WhiteElo "2577"]
[BlackElo "2240"]
[TimeControl "180+1"]
[EndTime "10:30:23 PDT"]
[Termination "chessfrendz won by resignation"]

1. d4 {[%clk 0:03:00.9]} 1... d5 {[%clk 0:02:58.7]} 2. Nf3 {[%clk 0:03:00.1]}
2... Nf6 {[%clk 0:02:58.1]} 3. c4 {[%clk 0:03:00.3]} 3... c6 {[%clk 0:02:57.3]}
4. Nc3 {[%clk 0:03:00.3]} 4... dxc4 {[%clk 0:02:56.6]} 5. a4 {[%clk 0:03:00.9]}
5... Bf5 {[%clk 0:02:55.2]} 6. e3 {[%clk 0:02:59.1]} 6... e6 {[%clk 0:02:53.8]}
7. Bxc4 {[%clk 0:02:59.7]} 7... Nbd7 {[%clk 0:02:53.8]} 8. O-O {[%clk
0:03:00.1]} 8... Bb4 {[%clk 0:02:53]} 9. Qe2 {[%clk 0:03:00.3]} 9... Bg6 {[%clk
0:02:49.9]} 10. Na2 {[%clk 0:02:58.1]} 10... Be7 {[%clk 0:02:39.6]} 11. Rd1
{[%clk 0:02:57]} 11... O-O {[%clk 0:02:38.8]} 12. Nc3 {[%clk 0:02:55.8]} 12...
a5 {[%clk 0:02:35.4]} 13. e4 {[%clk 0:02:54.8]} 13... Qb8 {[%clk 0:02:24.4]} 14.
Bg5 {[%clk 0:02:40.1]} 14... Re8 {[%clk 0:02:21.7]} 15. h3 {[%clk 0:02:37.7]}
15... h6 {[%clk 0:02:20]} 16. Bh4 {[%clk 0:02:31.9]} 16... Nh5 {[%clk
0:02:17.2]} 17. Qe3 {[%clk 0:02:21.3]} 17... Qf4 {[%clk 0:02:13.8]} 18. Bxe7
{[%clk 0:02:14.9]} 18... Qxe3 {[%clk 0:02:10.8]} 19. fxe3 {[%clk 0:02:15.8]}
19... Rxe7 {[%clk 0:02:09.2]} 20. e5 {[%clk 0:02:15.2]} 20... Ng3 {[%clk
0:02:04]} 21. Bd3 {[%clk 0:02:08.9]} 21... Bxd3 {[%clk 0:01:40.2]} 22. Rxd3
{[%clk 0:02:09.8]} 22... Rd8 {[%clk 0:01:38.9]} 23. Kf2 {[%clk 0:02:02.7]} 23...
Nc5 {[%clk 0:01:35.9]} 24. dxc5 {[%clk 0:02:00.5]} 24... Rxd3 {[%clk 0:01:34.5]}
25. Kxg3 {[%clk 0:02:00.7]} 25... Red7 {[%clk 0:01:31.8]} 26. Kf2 {[%clk
0:01:58.5]} 26... Rd8 {[%clk 0:01:23.6]} 27. Ke2 {[%clk 0:01:57]} 27... Kf8
{[%clk 0:01:20.3]} 28. Nd4 {[%clk 0:01:56.9]} 28... R3xd4 {[%clk 0:01:10.9]} 29.
exd4 {[%clk 0:01:57.8]} 29... Rxd4 {[%clk 0:01:10.6]} 30. Rd1 {[%clk 0:01:50.1]}
30... Rc4 {[%clk 0:01:00.4]} 31. Rd8+ {[%clk 0:01:45.8]} 31... Ke7 {[%clk
0:00:59.2]} 32. Rb8 {[%clk 0:01:46.7]} 32... Rb4 {[%clk 0:00:58.5]} 33. Nd1
{[%clk 0:01:40.9]} 33... f6 {[%clk 0:00:56]} 34. exf6+ {[%clk 0:01:39.8]} 34...
Kxf6 {[%clk 0:00:55.3]} 35. Kd3 {[%clk 0:01:38.5]} 35... Ke5 {[%clk 0:00:51.8]}
36. Ne3 {[%clk 0:01:37.3]} 36... Rb3+ {[%clk 0:00:48]} 37. Ke2 {[%clk
0:01:31.2]} 37... Rxb2+ {[%clk 0:00:48.3]} 38. Kf3 {[%clk 0:01:31.8]} 38... Rb3
{[%clk 0:00:46.9]} 39. Kf2 {[%clk 0:01:31.2]} 39... Rb2+ {[%clk 0:00:46]} 40.
Kf3 {[%clk 0:01:28.5]} 40... Rb3 {[%clk 0:00:45.7]} 41. Ke2 {[%clk 0:01:29]}
41... Rb2+ {[%clk 0:00:44.5]} 42. Kd3 {[%clk 0:01:29.3]} 42... Rb3+ {[%clk
0:00:44.9]} 43. Kd2 {[%clk 0:01:29.8]} 43... Kd4 {[%clk 0:00:38.3]} 44. Nc2+
{[%clk 0:01:28.2]} 44... Kxc5 {[%clk 0:00:37.6]} 45. Rg8 {[%clk 0:01:25.2]}
45... Rg3 {[%clk 0:00:36.4]} 46. Ne3 {[%clk 0:01:24.6]} 46... b5 {[%clk
0:00:35.2]} 47. axb5 {[%clk 0:01:24]} 47... cxb5 {[%clk 0:00:35.2]} 48. Kd3
{[%clk 0:01:24.6]} 48... a4 {[%clk 0:00:33.7]} 49. Ra8 {[%clk 0:01:22.4]} 49...
Kb4 {[%clk 0:00:31.9]} 50. Kd4 {[%clk 0:01:21.6]} 50... Rg5 {[%clk 0:00:26.2]}
51. g4 {[%clk 0:01:20.5]} 51... Rc5 {[%clk 0:00:22.8]} 52. Ra6 {[%clk
0:01:17.8]} 52... e5+ {[%clk 0:00:21.7]} 53. Ke4 {[%clk 0:01:12.5]} 53... a3
{[%clk 0:00:21.1]} 54. Kd3 {[%clk 0:01:11.7]} 54... Kb3 {[%clk 0:00:19.9]} 55.
Nf1 {[%clk 0:01:05.2]} 55... Kb2 {[%clk 0:00:19.2]} 56. Nd2 {[%clk 0:01:05.5]}
56... a2 {[%clk 0:00:18.9]} 57. Ke4 {[%clk 0:01:05.1]} 57... Rc2 {[%clk
0:00:15.4]} 58. Nf3 {[%clk 0:01:04]} 58... a1=Q {[%clk 0:00:14.2]} 59. Rxa1
{[%clk 0:01:04.3]} 59... Kxa1 {[%clk 0:00:14.7]} 60. Nxe5 {[%clk 0:01:05.2]}
60... Rh2 {[%clk 0:00:14.3]} 0-1

[Event "*** SCC Grand Prix: Titled Tuesday Blitz"]
[Site "Chess.com"]
[Date "2020.08.25"]
[Round "3"]
[White "1977Ivan"]
[Black "Parhamov"]
[Result "0-1"]
[WhiteElo "2687"]
[BlackElo "3017"]
[TimeControl "180+1"]
[EndTime "10:30:24 PDT"]
[Termination "Parhamov won on time"]

1. d4 {[%clk 0:03:00.9]} 1... Nf6 {[%clk 0:02:59.5]} 2. c4 {[%clk 0:03:00.8]}
2... g6 {[%clk 0:02:59.9]} 3. Nc3 {[%clk 0:03:00.4]} 3... d5 {[%clk 0:03:00.4]}
4. Nf3 {[%clk 0:02:57.2]} 4... Bg7 {[%clk 0:02:59.8]} 5. cxd5 {[%clk 0:02:57.7]}
5... Nxd5 {[%clk 0:02:59.4]} 6. e4 {[%clk 0:02:58.2]} 6... Nxc3 {[%clk
0:02:59.7]} 7. bxc3 {[%clk 0:02:59.1]} 7... c5 {[%clk 0:03:00.2]} 8. Be2 {[%clk
0:02:58.9]} 8... O-O {[%clk 0:02:58.6]} 9. O-O {[%clk 0:02:56.7]} 9... b6 {[%clk
0:02:57.8]} 10. h4 {[%clk 0:02:49.6]} 10... Ba6 {[%clk 0:02:41.4]} 11. Bxa6
{[%clk 0:02:45.9]} 11... Nxa6 {[%clk 0:02:42.3]} 12. Qe2 {[%clk 0:02:45.8]}
12... Qc8 {[%clk 0:02:37]} 13. h5 {[%clk 0:02:32.9]} 13... Re8 {[%clk
0:02:36.1]} 14. Rd1 {[%clk 0:02:26.5]} 14... Nc7 {[%clk 0:02:28.8]} 15. a4
{[%clk 0:02:07.2]} 15... Qg4 {[%clk 0:02:26.6]} 16. hxg6 {[%clk 0:01:55.9]}
16... hxg6 {[%clk 0:02:26.1]} 17. Ra3 {[%clk 0:01:50.9]} 17... cxd4 {[%clk
0:02:12.3]} 18. cxd4 {[%clk 0:01:49.7]} 18... Ne6 {[%clk 0:02:12.5]} 19. d5
{[%clk 0:01:21.3]} 19... Nc5 {[%clk 0:02:09.8]} 20. Re3 {[%clk 0:01:15.6]} 20...
Rac8 {[%clk 0:01:32.6]} 21. e5 {[%clk 0:00:57.3]} 21... Nxa4 {[%clk 0:01:22.4]}
22. Qa6 {[%clk 0:00:22.4]} 22... Nc3 {[%clk 0:01:15.9]} 23. Rd4 {[%clk
0:00:16.7]} 23... Qf5 {[%clk 0:01:15.7]} 24. Bd2 {[%clk 0:00:15.4]} 24... Qc2
{[%clk 0:00:56.3]} 25. Kh2 {[%clk 0:00:09.7]} 25... f5 {[%clk 0:00:33.1]} 26. d6
{[%clk 0:00:08.8]} 26... exd6 {[%clk 0:00:32.5]} 27. exd6 {[%clk 0:00:08.8]}
27... Bxd4 {[%clk 0:00:32.8]} 28. d7 {[%clk 0:00:07]} 28... Ne4 {[%clk
0:00:31.1]} 29. dxc8=Q {[%clk 0:00:06.1]} 29... Qxc8 {[%clk 0:00:28.6]} 30. Qxc8
{[%clk 0:00:05.8]} 30... Rxc8 {[%clk 0:00:29.3]} 31. Nxd4 {[%clk 0:00:06.1]}
31... Nxd2 {[%clk 0:00:28.9]} 32. Re7 {[%clk 0:00:05.8]} 32... a5 {[%clk
0:00:24.6]} 33. Ne6 {[%clk 0:00:05.4]} 33... Ne4 {[%clk 0:00:18.9]} 34. f3
{[%clk 0:00:05.1]} 34... Nc5 {[%clk 0:00:18.5]} 35. Nf4 {[%clk 0:00:02.9]} 35...
a4 {[%clk 0:00:17.8]} 36. Nd5 {[%clk 0:00:01.9]} 36... Rc6 {[%clk 0:00:15.3]}
0-1

[Event "*** SCC Grand Prix: Titled Tuesday Blitz"]
[Site "Chess.com"]
[Date "2020.08.25"]
[Round "3"]
[White "Bodnar_Mykola"]
[Black "Gloomy_Wanderer"]
[Result "0-1"]
[WhiteElo "2500"]
[BlackElo "2757"]
[TimeControl "180+1"]
[EndTime "10:30:26 PDT"]
[Termination "Gloomy_Wanderer won by resignation"]

1. e4 {[%clk 0:03:00.9]} 1... c5 {[%clk 0:02:59.6]} 2. Nf3 {[%clk 0:03:00]} 2...
a6 {[%clk 0:02:59.6]} 3. c4 {[%clk 0:02:59.3]} 3... Nc6 {[%clk 0:02:59.5]} 4. d4
{[%clk 0:02:59]} 4... cxd4 {[%clk 0:02:59.7]} 5. Nxd4 {[%clk 0:02:59.9]} 5... e5
{[%clk 0:03:00.4]} 6. Nc2 {[%clk 0:02:56]} 6... Bc5 {[%clk 0:03:00]} 7. Nc3
{[%clk 0:02:47.6]} 7... Nf6 {[%clk 0:02:58]} 8. Bd3 {[%clk 0:02:44.3]} 8... d6
{[%clk 0:02:57.6]} 9. O-O {[%clk 0:02:43.2]} 9... O-O {[%clk 0:02:57.7]} 10. h3
{[%clk 0:02:42.7]} 10... Be6 {[%clk 0:02:57.6]} 11. Nd5 {[%clk 0:02:38.3]} 11...
h6 {[%clk 0:02:57.4]} 12. Qf3 {[%clk 0:02:34.6]} 12... Bxd5 {[%clk 0:02:57.4]}
13. cxd5 {[%clk 0:02:33.6]} 13... Nd4 {[%clk 0:02:57.7]} 14. Nxd4 {[%clk
0:02:33.5]} 14... Bxd4 {[%clk 0:02:58.6]} 15. Bd2 {[%clk 0:02:26.2]} 15... Rc8
{[%clk 0:02:55.6]} 16. Rab1 {[%clk 0:02:18]} 16... Nd7 {[%clk 0:02:41.2]} 17. b4
{[%clk 0:02:11.7]} 17... Qf6 {[%clk 0:02:39.1]} 18. Qg3 {[%clk 0:02:06.7]} 18...
Nb6 {[%clk 0:02:34.5]} 19. Rfc1 {[%clk 0:02:05.9]} 19... Na4 {[%clk 0:02:33.3]}
20. Be3 {[%clk 0:01:51.1]} 20... Nc3 {[%clk 0:01:53.2]} 21. Ra1 {[%clk
0:01:39.8]} 21... Rfe8 {[%clk 0:01:22.5]} 22. a4 {[%clk 0:01:29.2]} 22... Rc7
{[%clk 0:01:11.1]} 23. Bxd4 {[%clk 0:01:14.7]} 23... exd4 {[%clk 0:01:11]} 24.
Re1 {[%clk 0:01:15.6]} 24... Rce7 {[%clk 0:01:10.1]} 25. f3 {[%clk 0:01:11.3]}
25... Qe5 {[%clk 0:00:56.2]} 26. f4 {[%clk 0:00:55.1]} 26... Qf6 {[%clk
0:00:56.1]} 27. Qf3 {[%clk 0:00:54.9]} 27... Nxd5 {[%clk 0:00:56.2]} 28. g3
{[%clk 0:00:50.2]} 28... Nxb4 {[%clk 0:00:49.8]} 29. Bc4 {[%clk 0:00:46.1]}
29... Rc7 {[%clk 0:00:46.3]} 30. Rac1 {[%clk 0:00:44.6]} 30... Rec8 {[%clk
0:00:43.9]} 31. Qb3 {[%clk 0:00:42.9]} 31... a5 {[%clk 0:00:39.8]} 32. e5 {[%clk
0:00:41.4]} 32... dxe5 {[%clk 0:00:40]} 33. fxe5 {[%clk 0:00:42.3]} 33... Qe7
{[%clk 0:00:33.8]} 34. e6 {[%clk 0:00:36.3]} 34... f5 {[%clk 0:00:34.2]} 35. Kh2
{[%clk 0:00:29.9]} 35... d3 {[%clk 0:00:33.6]} 36. Red1 {[%clk 0:00:28.3]} 36...
f4 {[%clk 0:00:30.5]} 37. gxf4 {[%clk 0:00:27.2]} 37... Kh8 {[%clk 0:00:29.8]}
38. Qc3 {[%clk 0:00:18.1]} 38... Qh4 {[%clk 0:00:26.9]} 39. Rg1 {[%clk
0:00:16.4]} 39... Qxf4+ {[%clk 0:00:24.5]} 40. Rg3 {[%clk 0:00:16.8]} 40... Qxc4
{[%clk 0:00:18.7]} 41. Qxg7+ {[%clk 0:00:09.3]} 41... Rxg7 {[%clk 0:00:18.2]}
42. Rxc4 {[%clk 0:00:09.9]} 42... Rxc4 {[%clk 0:00:18.3]} 43. Rxg7 {[%clk
0:00:09.7]} 0-1